Cogmind - Beta 14 @@@ ROGUE MODE // 2024.09.22 @ 15:32:46 Player: jimmyl Result: Destroyed by D-53 Grenadier with Mini Grenade Launcher Performance ------------- Evolutions (1) 500 Regions Visited (4) 800 Robots Destroyed (21) 105 Value Destroyed (529) 529 Prototype IDs (1) 20 Alien Tech Used (0) 0 Bonus (0) 0 TOTAL SCORE: 1954 Bonus ------- None Cogmind --------- Core Integrity 0/400 Matter 292/300 Energy 99/100 System Corruption 0% Temperature Cool (0) Movement Core (100) Ox1 Location -9/Mines Parts ------- > --- POWER (1) -------- (None) > --- PROPULSION (2) --- (None) > --- UTILITY (4) ------ Heat Sink Small Storage Unit > --- WEAPON (2) ------- (None) > --- INVENTORY (8) ---- Ion Engine Light Treads Light Treads Wheel Wheel Sensor Array Peak State ------------ > --- POWER ------------ Ion Engine > --- PROPULSION ------- Aluminum Leg Aluminum Leg > --- UTILITY ---------- Heat Sink Heat Sink Small Storage Unit Shield Generator > --- WEAPON ----------- Medium Laser Advanced Beam Cannon > --- INVENTORY -------- Ion Engine Light Treads Light Treads Wheel Wheel Sensor Array Particle Cannon Heavy Hammer [Rating: 13] Favorites ----------- Power Ion Engine Engine Ion Engine Propulsion Aluminum Leg Leg Aluminum Leg Utility Small Storage Unit Device Heat Sink Storage Small Storage Unit Protection Medium Armor Plating Weapon Medium Laser Energy Gun Medium Laser Energy Cannon Advanced Beam Cannon Impact Weapon Heavy Hammer Build | -11 -10 -10 -9 -9 ------- Run | Yrd Mat Min Mat Min Slots Evolved 2 | . . . 2 . Power . | . . . . . Propulsion . | . . . . . Utility 2 | . . . 2 . Weapon . | . . . . . Parts Attached 12 | . . . 9 3 Power 2 | . . . 2 . Engine 2 | . . . 2 . Core . | . . . . . Reactor . | . . . . . Propulsion 2 | . . . 2 . Treads . | . . . . . Leg 2 | . . . 2 . Wheel . | . . . . . Hover . | . . . . . Flight . | . . . . . Utility 5 | . . . 4 1 Device 4 | . . . 3 1 Storage . | . . . . . Processor . | . . . . . Hackware . | . . . . . Protection 1 | . . . 1 . Artifact . | . . . . . Weapon 3 | . . . 1 2 Energy Gun . | . . . . . Energy Cannon 2 | . . . 1 1 Ballistic Gun . | . . . . . Ballistic Cannon . | . . . . . Launcher . | . . . . . Special Weapon . | . . . . . Impact Weapon 1 | . . . . 1 Slashing Weapon . | . . . . . Piercing Weapon . | . . . . . Special Melee Weapon . | . . . . . Unidentified Prototypes 1 | . . . 1 . Parts Lost 12 | . . . 2 10 Power 1 | . . . . 1 Propulsion 3 | . . . 1 2 Utility 4 | . . . 1 3 Weapon 4 | . . . . 4 Highest Loss Streak 8 | . . . 2 8 To Critical Strikes . | . . . . . Average Slot Usage (%) 86 | . 85 85 86 89 Engine 12 | . 14 14 10 10 Leg 23 | . 28 28 21 19 Device 12 | . . . 19 28 Storage 12 | . 14 14 11 11 Energy Gun 17 | . 28 28 11 6 Energy Cannon 6 | . . . 10 11 Peak Build Rating 13 | . 6 6 12 13 Average Rating 8 | . 6 6 10 11 On Entrance 7 | 6 6 6 6 12 Naked Turns . | . . . . . Heaviest Build 25 | 14 14 14 25 21 Greatest Support 20 | 20 20 20 20 20 Greatest Overweight (x) 2 | . . . 1 2 Average Overweight (x) . | . . . . . Largest Inventory Capacity 8 | . 8 8 8 8 Average Capacity 8 | . 8 8 8 8 Most Carried 8 | . 6 6 7 8 Average Carried 6 | . 6 6 6 7 Final Capacity 8 | 8 8 8 8 8 Final Carried 7 | 6 6 6 7 6 Class Distribution -------------------- 73% | Mutant 26% | Scavenger-Mutant Dominant Class ---------------- Mutant | -10/Materials Mutant | -10/Mines Mutant | -9/Materials Scavenger-Mutant | -9/Mines Resources | -11 -10 -10 -9 -9 ----------- Run | Yrd Mat Min Mat Min Matter Collected 247 | 186 . . 44 17 Remotely . | . . . . . Salvage Created 596 | . 113 . 301 182 Parts 39 | . 12 . 16 11 Haulers Intercepted . | . . . . . Recyclers Shooed 1 | . 1 . . . Parts Field Recycled . | . . . . . Retrieved Matter . | . . . . . Parts Self-Destructed . | . . . . . Prevented . | . . . . . Kills | -11 -10 -10 -9 -9 ------- Run | Yrd Mat Min Mat Min Combat Hostiles Destroyed 20 | . 5 . 9 6 Guns 9 | . 5 . 3 1 Cannons 10 | . . . 6 4 Classes Destroyed 3 | . 2 . 1 . Watcher 1 | . . . 1 . Swarmer 9 | . 3 . 3 3 Grunt 11 | . 2 . 6 3 Best Kill Streak 3 | . 3 . 3 3 Combat Bots Only 3 | . 3 . 3 3 Max Kills in Single Turn 1 | . 1 . 1 1 Gunslinging . | . . . . . Exploded . | . . . . . Melee . | . . . . . Uniques/NPCs Destroyed . | . . . . . Combat | -11 -10 -10 -9 -9 -------- Run | Yrd Mat Min Mat Min Hostile Shots Fired 143 | . 32 . 53 58 Missed 34 | . 12 . 10 12 Damage Taken 1615 | . 169 . 509 937 Core 493 | . 85 . 62 346 Absorbed by Shields 88 | . . . 12 76 Core Remaining (%) 83 | 100 . 66 . . Volleys Fired 65 | . 16 . 29 20 Largest 2 | . 2 . 2 2 Hottest 136 | . 90 . 118 136 Shots Fired 120 | . 32 . 58 30 Gun 68 | . 32 . 29 7 Cannon 52 | . . . 29 23 Launcher . | . . . . . Special . | . . . . . Kinetic . | . . . . . Thermal 104 | . 16 . 58 30 Explosive . | . . . . . Electromagnetic 16 | . 16 . . . Robot Hit Streak 9 | . 4 . 9 5 Robot Miss Streak 5 | . 5 . 3 2 Penetration Max . | . . . . . Secondary Targets . | . . . . . Shots Hit Robots 72 | . 14 . 38 20 Core Hits 27 | . 7 . 13 7 Critical Kills 1 | . . . . 1 Critical Parts Destroyed 1 | . . . . 1 Critical Strikes 6 | . . . 3 3 Burn 4 | . . . 3 1 Meltdown 1 | . . . . 1 Smash 1 | . . . . 1 Melee Attacks 1 | . . . . 1 Impact 1 | . . . . 1 Slashing . | . . . . . Piercing . | . . . . . Sneak Attacks . | . . . . . Combat Hostiles . | . . . . . Follow-up Attacks . | . . . . . Damage Inflicted 1196 | . 181 . 647 368 Guns 479 | . 181 . 236 62 Cannons 699 | . . . 411 288 Explosions . | . . . . . Melee 15 | . . . . 15 Ramming 3 | . . . . 3 Kinetic . | . . . . . Thermal 1120 | . 123 . 647 350 Explosive . | . . . . . Electromagnetic 58 | . 58 . . . Impact 15 | . . . . 15 Slashing . | . . . . . Piercing . | . . . . . Highest Corruption . | . . . . . Average Corruption . | . . . . . Corruption Purged . | . . . . . Corruption Blocked . | . . . . . Overload Shots . | . . . . . Overflow Damage 16 | . . . 1 15 Projectiles 1 | . . . 1 . Explosions . | . . . . . Melee 15 | . . . . 15 Knockbacks . | . . . . . Impact . | . . . . . Kinetic . | . . . . . Secondary . | . . . . . Self-Inflicted Damage 1 | . . . . 1 Shots . | . . . . . Rammed 1 | . . . . 1 Targets Rammed 1 | . . . . 1 Kicked . | . . . . . Crushed . | . . . . . Highest Temperature 222 | . 222 . 192 108 Average Temperature 70 | . 105 . 52 29 Received Heat Transfer 458 | . 36 . 267 155 Siege Activations . | . . . . . Robots Corrupted . | . . . . . Combat Hostiles . | . . . . . Parts Fried . | . . . . . Impact Corruptions 1 | . . . . 1 Robots Melted 1 | . . . . 1 Combat Hostiles 1 | . . . . 1 Parts Melted 6 | . 1 . 3 2 Heat Transferred 2812 | . 370 . 1665 777 Parts Sabotaged . | . . . . . Parts Stolen . | . . . . . Parts Stripped . | . . . . . Power Chain Reactions . | . . . . . Alert | -11 -10 -10 -9 -9 ------- Run | Yrd Mat Min Mat Min Peak Influence 302 | . 180 70 302 282 Initial 117 | . . 70 27 117 Average 136 | . 82 70 187 181 Maximum Alert Level 1 | . . . 1 1 Low Security (%) 73 | . 100 100 46 61 Level 1 26 | . . . 53 38 Level 2 . | . . . . . Level 3 . | . . . . . Level 4 . | . . . . . Level 5 . | . . . . . High Security . | . . . . . Max Security . | . . . . . Squads Dispatched 4 | . 2 . 2 . Investigation . | . . . . . Extermination . | . . . . . Reinforcement 4 | . 2 . 2 . Assault . | . . . . . Garrison . | . . . . . Intercept . | . . . . . Searches Triggered . | . . . . . Construction Impeded . | . . . . . Haulers Reinforced . | . . . . . Active Scanning Responses . | . . . . . Cargo Convoy Interrupts . | . . . . . Stealth | -11 -10 -10 -9 -9 --------- Run | Yrd Mat Min Mat Min Distress Signals 4 | . 1 . 3 . Communications Jammed . | . . . . . Distress Signals . | . . . . . Times Spotted 34 | . 7 . 17 10 Peak Tracking Total 5 | . 4 . 5 5 Tactical Retreats 5 | . 1 . 3 1 Traps | -11 -10 -10 -9 -9 ------- Run | Yrd Mat Min Mat Min Traps Triggered . | . . . . . Indirectly . | . . . . . Trap Hack Attempts . | . . . . . Triggered . | . . . . . Disarmed . | . . . . . Reprogrammed . | . . . . . Reused . | . . . . . Traps Extracted . | . . . . . Installed . | . . . . . Triggered . | . . . . . Machines | -11 -10 -10 -9 -9 ---------- Run | Yrd Mat Min Mat Min Machines Disabled 1 | . . . . 1 Max in Single Turn 1 | . . . . 1 Machines Repaired . | . . . . . Machines Dismantled . | . . . . . Machines Sabotaged . | . . . . . Overloaded Fab Kills . | . . . . . Hacking | -11 -10 -10 -9 -9 --------- Run | Yrd Mat Min Mat Min Machines Accessed . | . . . . . Terminals . | . . . . . Fabricators . | . . . . . Repair Stations . | . . . . . Recycling Units . | . . . . . Scanalyzers . | . . . . . Garrison Access . | . . . . . Total Hacks . | . . . . . Successful . | . . . . . Failed . | . . . . . Catastrophic . | . . . . . Database Lockouts . | . . . . . Manual . | . . . . . Terminals . | . . . . . Fabricators . | . . . . . Repair Stations . | . . . . . Recycling Units . | . . . . . Scanalyzers . | . . . . . Garrison Access . | . . . . . Terminal Hacks . | . . . . . Fabricator Hacks . | . . . . . Repair Station Hacks . | . . . . . Recycling Unit Hacks . | . . . . . Scanalyzer . | . . . . . Garrison Access Hacks . | . . . . . Unauthorized Hacks . | . . . . . Terminals . | . . . . . Fabricators . | . . . . . Repair Stations . | . . . . . Recycling Units . | . . . . . Scanalyzers . | . . . . . Garrison Access . | . . . . . Data Cores Recovered . | . . . . . Used . | . . . . . Hacking Detections . | . . . . . Full Trace Events . | . . . . . Feedback Events . | . . . . . Feedback Blocked . | . . . . . Robot Schematics Acquired . | . . . . . Robots Built . | . . . . . Authchips . | . . . . . Time . | . . . . . Total Robot Build Rating . | . . . . . Part Schematics Acquired . | . . . . . Parts Built . | . . . . . Authchips . | . . . . . Time . | . . . . . Total Part Build Rating . | . . . . . Parts Repaired . | . . . . . Time . | . . . . . Parts Recycled . | . . . . . Recycled Matter . | . . . . . Retrieved Matter . | . . . . . Retrieved Components . | . . . . . Parts Scanalyzed . | . . . . . Part Schematics Acquired . | . . . . . Parts Damaged . | . . . . . Bothacking | -11 -10 -10 -9 -9 ------------ Run | Yrd Mat Min Mat Min Used RIF Installer . | . . . . . Robots Hacked . | . . . . . Non-combat . | . . . . . Combat . | . . . . . Robot Hacks Applied . | . . . . . Relay Couplers Released . | . . . . . Fabnet Peak Effective % . | . . . . . Robots Rewired . | . . . . . Allies Hacked . | . . . . . Hacks Repelled . | . . . . . Allies | -11 -10 -10 -9 -9 -------- Run | Yrd Mat Min Mat Min Total Allies . | . . . . . Largest Group . | . . . . . Highest-Rated Group . | . . . . . Highest-Rated Ally . | . . . . . Total Orders . | . . . . . Ally Attacks . | . . . . . Total Damage . | . . . . . Kills . | . . . . . Allies Corrupted . | . . . . . Allies Melted . | . . . . . Intel | -11 -10 -10 -9 -9 ------- Run | Yrd Mat Min Mat Min Robot Analysis Total . | . . . . . Derelict Logs Recovered 1 | . . . . 1 Drone Launches . | . . . . . Drone Recoveries . | . . . . . Exploration | -11 -10 -10 -9 -9 ------------- Run | Yrd Mat Min Mat Min Turns Passed 842 | . 169 208 304 161 Spaces Moved 495 | 1 99 174 142 79 Core 6 | . . . . 6 Treads . | . . . . . Legs 489 | 1 99 174 142 73 Wheels . | . . . . . Hover . | . . . . . Flight . | . . . . . Fastest Speed 100 | 120 120 120 120 100 Average Speed 121 | 120 120 120 123 120 Slowest Speed 190 | 120 120 120 190 190 Overloaded Moves . | . . . . . Propulsion Burnouts . | . . . . . Robots Hopped . | . . . . . Cave-ins Triggered . | . . . . . Exploration Rate (%) 23 | 2 31 45 17 23 Regions Visited 4 Branch Regions 2 Pre-discovered Areas 1 | . . . . 1 Known Exits Taken . | . . . . . Unknown Exits Taken 4 | 1 1 1 1 . Scrap Searched . | . . . . . Spaces Dug . | . . . . . Terrain Destroyed . | . . . . . Melee . | . . . . . Projectile . | . . . . . AOE . | . . . . . Terrain Rammed . | . . . . . Walls Destroyed . | . . . . . Machines Disabled . | . . . . . Actions | -11 -10 -10 -9 -9 --------- Run | Yrd Mat Min Mat Min Total 613 | . 117 173 210 113 Wait 34 | . 3 . 25 6 Move 491 | . 98 173 141 79 Hop . | . . . . . Pick Up 4 | . . . 2 2 Fast Attach 7 | . . . 6 1 Attach 3 | . . . 1 2 Detach . | . . . . . Swap 2 | . . . 2 . Drop 5 | . . . 4 1 Fire 65 | . 16 . 29 20 Melee 1 | . . . . 1 Ram 1 | . . . . 1 Kick . | . . . . . Crush . | . . . . . Escape Stasis . | . . . . . Rewire . | . . . . . Trap . | . . . . . Miscellaneous . | . . . . . Route ------- -11/Scrapyard -10/Materials -10/Mines -9/Materials -9/Mines (discovered 1 exit: [*Mat]) History --------- Turn | Location | Event 1 | -11/Scrapyard | Discovered new exit (range 0) 1 | -11/Scrapyard | Entered Materials 135 | -10/Materials | Discovered new exit (range 3) 170 | -10/Materials | Entered Mines 191 | -10/Mines | Met a Derelict bent on vengeance 305 | -10/Mines | Build established: Mutant 353 | -10/Mines | Discovered new exit (range 13) 378 | -10/Mines | Entered Materials 378 | -9/Materials | Evolved 2 slots: Utility x2 673 | -9/Materials | Discovered new exit (range 7) 682 | -9/Materials | Entered Mines 694 | -9/Mines | Discovered new exit (range 5) 696 | -9/Mines | Learned location of Zion (-7) 754 | -9/Mines | Assembled infested the area 833 | -9/Mines | Core integrity fell below 50% 837 | -9/Mines | Core integrity fell below 20% 843 | -9/Mines | Destroyed by D-53 Grenadier with Mini Grenade Launcher Last Messages --------------- 00822_ Critical hit (Burn: +37). 00822_ G-47 Trooper destroyed. 00826_ Shield Generator destroyed. 00827_ The unstable cave ceiling collapses. 00827_ Acquired Heat Sink. 00828_ Aluminum Leg destroyed. 00830_ Ion Engine destroyed. 00830_ Adv. Beam Cannon destroyed. 00830_ Aluminum Leg destroyed. 00832_ Particle Cannon destroyed. 00834_ The unstable cave ceiling collapses. 00834_ Heat Sink destroyed. 00836_ D-53 Grenadier suffers critical hit (Smash). 00836_ Destroyed Cmb. Airjet. 00836_ D-53 Grenadier system corrupted by crushing effect. 00838_ The unstable cave ceiling collapses. 00838_ Hvy. Hammer destroyed. 00839_ Slammed into D-53 Grenadier. 00841_ The unstable cave ceiling collapses. Map ----- +----------------------------------------------------+ | ?????????????????????????????????????????????????? | | ?????????????????????????????????????????????????? | | ?????????????????????????????????????????????????? | | ?????????????????????????????????????????????????? | | ?????????????????????????????????????????????????? | | ?????????????????????????????????????????????????? | | ?????????????????????????????????????????????????? | | ??????????????????????????#??????????????????????? | | ?????????????????????????? ??????????????????????? | | ????????????????????# ???" #?????????????????????? | | ????????????????????# ??" #?????????????????????? | | ????????????????????# ??" #?????????????????????? | | ????????????????????# #?????????????????????? | | ????????????????????# """ #?????????????????????? | | ????????????????????# """ #?????????????????????? | | ????????????????????# """ ###???????????????????? | | ??????????????????### # ##??????????????????? | | ??????????????????? ##?????????????????? | | ??????????????????## = #?????????????????? | | ??????????????????# #?????????????????? | | ??????????????????? ##?????????????????? | | ????????????????????# #?????#???????????? | | ????????????????????# #???? ????????????? | | ????????????????????# d ##??? ????????????? | | ????????????????????# d #???? #????????????? | | ????????????????????## @ #???? #????????????? | | ????????????????????# #### #????????????? | | ????????????????????# #????????????? | | ????????????????????# #### ##???????????? | | ????????????????????## ##?# ##??????????? | | ?????????????????????#### ## ##?????????? | | ????????????????????????### * ##????????? | | ??????????????????????????#### = #????????? | | ?????????????????????????????##% #????????? | | ??????????????????????????????# %#### ##????????? | | ??????????????????????????????# #????##?????????? | | ??????????????????????????????# #???????????????? | | ??????????????????????????????# #???????????????? | | ??????????????????????????????# #???????????????? | | ??????????????????????????????# #???????????????? | | ?????????????????????????###??# ##??????????????? | | ????????????????????????## ### #######????????? | | ????????????????????????# ## #????????? | | ????????????????????????# ##### #????????? | | ????????????????????????## #???# #????????? | | ?????????????????????????## #???# #????????? | | ??????????????????????????### ##??# #????????? | | ????????????????????????????## ##?# #????????? | | ?????????????????????????????## #?# #????????? | | ??????????????????????????????# [ #?# #????????? | +----------------------------------------------------+ Best States ------------- Heat Dissipation 48 Energy Generation 10 Energy Capacity 250 Matter Stores 292 Matter Capacity 300 Sight Range 16 Terrain Scan Density 10 Armor Coverage 225 Evasion (%) 55 Item Schematics ----------------- None Robot Schematics ------------------ None Fabricated ------------ Nothing Alien Tech Used ----------------- None Achievements -------------- None Challenges ------------ None Game ------ Seed AlphaReactiveScreen Manual? 0 Play Time 00:07:09 Cumulative 135.3 hours Start 2024.09.20 @ 15:43:23 End 2024.09.22 @ 15:32:46 Sessions 3 Manual Loads 0 Difficulty Rogue Special Mode None Game No. 220 Rogue 219 Adventurer 1 Explorer 0 Win Type - Total 2 Types 2/0/0/0/0/0/0/0/0 Lore% 70 Gallery% 68 Achievement% 50 Wizard Run 0 Options --------- Layout 1 ASCII 0 Keyboard 0 Movement Mouse Keybinds 0 Fullscreen 2 Font 20/SmallcapsGlow Map View 54x42 Zoom Use 0% Tactical HUD 1 Map Filters NONE Filters NONE Steam 0 RUN: 32d15fe1-66c2-47d9-90e4-be543db55d60